[Event "Titled Tuesday Blitz August 1 Early 2023"]
[White "djokovic74"]
[Black "Harsh Suresh"]
[BlackFideId "45018464"]
[WhiteElo "2771"]
[BlackElo "2889"]
[Result "0-1"]
[Round "8"]
[TimeControl "180+1"]
[Date "2023.08.01"]
[WhiteClock "0:00:00"]
[BlackClock "0:00:18"]
[Board "15"]

1. e4 {[%clk 0:03:00]}  e5 {[%clk 0:02:52]} 2. Nf3 {[%clk 0:03:01]}  Nc6 {[%clk 0:02:53]} 3. Bb5 {[%clk 0:03:00]}  a6 {[%clk 0:02:51]} 4. Ba4 {[%clk 0:03:00]}  Nf6 {[%clk 0:02:52]} 5. O-O {[%clk 0:03:01]}  b5 {[%clk 0:02:52]} 6. Bb3 {[%clk 0:03:01]}  Bc5 {[%clk 0:02:52]} 7. Nc3 {[%clk 0:02:57]}  O-O {[%clk 0:02:46]} 8. a3 {[%clk 0:02:40]}  d6 {[%clk 0:02:42]} 9. h3 {[%clk 0:02:34]}  h6 {[%clk 0:02:39]} 10. d3 {[%clk 0:02:35]}  Nd4 {[%clk 0:02:36]} 11. Nxd4 {[%clk 0:02:34]}  Bxd4 {[%clk 0:02:37]} 12. Ne2 {[%clk 0:02:30]}  Bb6 {[%clk 0:02:37]} 13. Ng3 {[%clk 0:02:25]}  Be6 {[%clk 0:02:34]} 14. c3 {[%clk 0:02:15]}  d5 {[%clk 0:02:29]} 15. Bc2 {[%clk 0:01:59]}  dxe4 {[%clk 0:02:13]} 16. dxe4 {[%clk 0:01:58]}  Qxd1 {[%clk 0:02:06]} 17. Rxd1 {[%clk 0:01:57]}  Rfd8 {[%clk 0:02:00]} 18. Be3 {[%clk 0:01:57]}  Bxe3 {[%clk 0:01:58]} 19. fxe3 {[%clk 0:01:57]}  Kf8 {[%clk 0:01:58]} 20. Kf2 {[%clk 0:01:54]}  Ke7 {[%clk 0:01:58]} 21. a4 {[%clk 0:01:38]}  Nd7 {[%clk 0:01:39]} 22. axb5 {[%clk 0:01:19]}  axb5 {[%clk 0:01:40]} 23. b4 {[%clk 0:00:45]}  g6 {[%clk 0:01:35]} 24. Nf1 {[%clk 0:00:42]}  Nb6 {[%clk 0:01:24]} 25. Ke1 {[%clk 0:00:36]}  Rxd1+ {[%clk 0:01:18]} 26. Rxd1 {[%clk 0:00:35]}  Ra3 {[%clk 0:01:18]} 27. Bd3 {[%clk 0:00:27]}  Bc4 {[%clk 0:01:10]} 28. Bxc4 {[%clk 0:00:22]}  Nxc4 {[%clk 0:01:11]} 29. Rd3 {[%clk 0:00:23]}  Ra1+ {[%clk 0:01:04]} 30. Kf2 {[%clk 0:00:23]}  Ra2+ {[%clk 0:01:05]} 31. Kf3 {[%clk 0:00:23]}  Rc2 {[%clk 0:01:04]} 32. g4 {[%clk 0:00:20]}  c6 {[%clk 0:01:03]} 33. h4 {[%clk 0:00:20]}  Ke8 {[%clk 0:00:58]} 34. Ng3 {[%clk 0:00:19]}  Nd2+ {[%clk 0:00:55]} 35. Ke2 {[%clk 0:00:14]}  Nxe4+ {[%clk 0:00:49]} 36. Kf3 {[%clk 0:00:11]}  Nd2+ {[%clk 0:00:31]} 37. Ke2 {[%clk 0:00:11]}  Nb1+ {[%clk 0:00:31]} 38. Kf3 {[%clk 0:00:05]}  Nxc3 {[%clk 0:00:31]} 39. h5 {[%clk 0:00:03]}  Ke7 {[%clk 0:00:28]} 40. hxg6 {[%clk 0:00:03]}  fxg6 {[%clk 0:00:29]} 41. Ne4 {[%clk 0:00:02]}  Nxe4 {[%clk 0:00:28]} 42. Kxe4 {[%clk 0:00:02]}  Ke6 {[%clk 0:00:27]} 43. Rd8 {[%clk 0:00:02]}  Rc4+ {[%clk 0:00:28]} 44. Kf3 {[%clk 0:00:03]}  Rxb4 {[%clk 0:00:28]} 45. Rh8 {[%clk 0:00:04]}  h5 {[%clk 0:00:23]} 46. gxh5 {[%clk 0:00:04]}  gxh5 {[%clk 0:00:24]} 47. Rxh5 {[%clk 0:00:04]}  Kd5 {[%clk 0:00:20]} 48. Rh8 {[%clk 0:00:05]}  Rc4 {[%clk 0:00:19]} 49. Rd8+ {[%clk 0:00:05]}  Kc5 {[%clk 0:00:19]} 50. e4 {[%clk 0:00:05]}  b4 {[%clk 0:00:18]} 51. Ke3 {[%clk 0:00:04]}  b3 {[%clk 0:00:18]} 52. Rb8 {[%clk 0:00:00]}  Rb4 {[%clk 0:00:18]} 0-1


[Site "https://www.chess.com"]

[Event "Titled Tuesday Blitz August 1 Early 2023"]
[White "JeRoma71"]
[Black "Idani, Pouya"]
[BlackFideId "12510130"]
[WhiteElo "2887"]
[BlackElo "2753"]
[Result "0-1"]
[Round "8"]
[TimeControl "180+1"]
[Date "2023.08.01"]
[WhiteClock "0:00:00"]
[BlackClock "0:00:19"]
[Board "16"]

1. Nf3 {[%clk 0:02:59]}  d5 {[%clk 0:02:58]} 2. g3 {[%clk 0:02:58]}  Nd7 {[%clk 0:02:58]} 3. d4 {[%clk 0:02:58]}  Nb6 {[%clk 0:02:58]} 4. a4 {[%clk 0:02:58]}  a5 {[%clk 0:02:57]} 5. b3 {[%clk 0:02:58]}  h6 {[%clk 0:02:53]} 6. Bg2 {[%clk 0:02:57]}  Bf5 {[%clk 0:02:53]} 7. Ba3 {[%clk 0:02:57]}  Nf6 {[%clk 0:02:49]} 8. O-O {[%clk 0:02:56]}  e6 {[%clk 0:02:43]} 9. Bxf8 {[%clk 0:02:57]}  Kxf8 {[%clk 0:02:43]} 10. Nbd2 {[%clk 0:02:58]}  c6 {[%clk 0:02:29]} 11. e3 {[%clk 0:02:57]}  Ne4 {[%clk 0:02:27]} 12. Ne5 {[%clk 0:02:53]}  Nxd2 {[%clk 0:02:26]} 13. Qxd2 {[%clk 0:02:54]}  Nd7 {[%clk 0:02:27]} 14. Nd3 {[%clk 0:02:51]}  Kg8 {[%clk 0:02:23]} 15. Rfc1 {[%clk 0:02:50]}  Kh7 {[%clk 0:02:23]} 16. c4 {[%clk 0:02:50]}  Re8 {[%clk 0:02:22]} 17. Rab1 {[%clk 0:02:49]}  Kg8 {[%clk 0:02:17]} 18. b4 {[%clk 0:02:47]}  Nb6 {[%clk 0:01:51]} 19. c5 {[%clk 0:02:38]}  Nc4 {[%clk 0:01:50]} 20. Qc3 {[%clk 0:02:37]}  Bxd3 {[%clk 0:01:33]} 21. Qxd3 {[%clk 0:02:35]}  e5 {[%clk 0:01:26]} 22. b5 {[%clk 0:02:35]}  exd4 {[%clk 0:01:24]} 23. Qxd4 {[%clk 0:02:35]}  Qe7 {[%clk 0:01:16]} 24. Rb3 {[%clk 0:02:33]}  Rad8 {[%clk 0:01:09]} 25. Rcb1 {[%clk 0:02:31]}  Ne5 {[%clk 0:00:50]} 26. Qc3 {[%clk 0:02:24]}  Nd7 {[%clk 0:00:47]} 27. Rc1 {[%clk 0:02:19]}  Ra8 {[%clk 0:00:44]} 28. h3 {[%clk 0:02:18]}  Nf6 {[%clk 0:00:44]} 29. bxc6 {[%clk 0:02:15]}  bxc6 {[%clk 0:00:45]} 30. Rb6 {[%clk 0:02:14]}  Qc7 {[%clk 0:00:45]} 31. Rcb1 {[%clk 0:02:12]}  Re7 {[%clk 0:00:44]} 32. Qd4 {[%clk 0:02:09]}  Ra7 {[%clk 0:00:38]} 33. Qf4 {[%clk 0:02:08]}  Qxf4 {[%clk 0:00:38]} 34. gxf4 {[%clk 0:02:08]}  Rec7 {[%clk 0:00:38]} 35. Bf1 {[%clk 0:01:59]}  Kf8 {[%clk 0:00:38]} 36. Rc1 {[%clk 0:01:50]}  Nd7 {[%clk 0:00:38]} 37. h4 {[%clk 0:01:43]}  Ke7 {[%clk 0:00:38]} 38. Bh3 {[%clk 0:01:43]}  Nf6 {[%clk 0:00:38]} 39. f3 {[%clk 0:01:40]}  Rab7 {[%clk 0:00:36]} 40. Kf2 {[%clk 0:01:39]}  d4 {[%clk 0:00:36]} 41. e4 {[%clk 0:01:37]}  Nh5 {[%clk 0:00:36]} 42. Rcb1 {[%clk 0:01:30]}  Rxb6 {[%clk 0:00:37]} 43. cxb6 {[%clk 0:01:31]}  Rb7 {[%clk 0:00:37]} 44. Bc8 {[%clk 0:01:31]}  Rb8 {[%clk 0:00:37]} 45. b7 {[%clk 0:01:21]}  Nxf4 {[%clk 0:00:37]} 46. Ke1 {[%clk 0:01:15]}  Nd3+ {[%clk 0:00:37]} 47. Kd2 {[%clk 0:01:13]}  Nc5 {[%clk 0:00:36]} 48. e5 {[%clk 0:01:06]}  Nxa4 {[%clk 0:00:32]} 49. Kd3 {[%clk 0:01:05]}  Nc3 {[%clk 0:00:32]} 50. Ra1 {[%clk 0:01:03]}  Kd8 {[%clk 0:00:29]} 51. Rxa5 {[%clk 0:01:01]}  Nb5 {[%clk 0:00:28]} 52. Ra8 {[%clk 0:00:56]}  Kc7 {[%clk 0:00:28]} 53. f4 {[%clk 0:00:55]}  f6 {[%clk 0:00:27]} 54. e6 {[%clk 0:00:54]}  Nd6 {[%clk 0:00:26]} 55. Kxd4 {[%clk 0:00:49]}  Nxc8 {[%clk 0:00:18]} 56. bxc8=Q+ {[%clk 0:00:34]}  Rxc8 {[%clk 0:00:19]} 57. Ra7+ {[%clk 0:00:34]}  Kd6 {[%clk 0:00:19]} 58. f5 {[%clk 0:00:34]}  Rc7 {[%clk 0:00:18]} 59. Rxc7 {[%clk 0:00:32]}  Kxc7 {[%clk 0:00:19]} 60. Kc5 {[%clk 0:00:32]}  h5 {[%clk 0:00:18]} 61. Kc4 {[%clk 0:00:19]}  Kd6 {[%clk 0:00:19]} 62. Kd4 {[%clk 0:00:20]}  g6 {[%clk 0:00:17]} 63. fxg6 {[%clk 0:00:20]}  Kxe6 {[%clk 0:00:18]} 64. Kc5 {[%clk 0:00:19]}  f5 {[%clk 0:00:18]} 65. Kd4 {[%clk 0:00:17]}  Kf6 {[%clk 0:00:18]} 66. g7 {[%clk 0:00:17]}  Kxg7 {[%clk 0:00:18]} 67. Ke5 {[%clk 0:00:18]}  Kg6 {[%clk 0:00:18]} 68. Ke6 {[%clk 0:00:00]}  f4 {[%clk 0:00:19]} 0-1


[Site "https://www.chess.com"]

[Event "Titled Tuesday Blitz August 1 Early 2023"]
[White "Jahnz, Fabian"]
[Black "Tristan, Leonardo"]
[WhiteFideId "4653300"]
[BlackFideId "113816"]
[WhiteElo "2391"]
[BlackElo "2797"]
[Result "0-1"]
[Round "8"]
[TimeControl "180+1"]
[Date "2023.08.01"]
[WhiteClock "0:00:01"]
[BlackClock "0:01:25"]
[Board "19"]

1. e4 {[%clk 0:02:59]}  d5 {[%clk 0:03:00]} 2. exd5 {[%clk 0:02:59]}  Qxd5 {[%clk 0:03:01]} 3. Nc3 {[%clk 0:02:59]}  Qa5 {[%clk 0:03:01]} 4. Nf3 {[%clk 0:02:59]}  Nf6 {[%clk 0:03:01]} 5. h3 {[%clk 0:02:59]}  Bf5 {[%clk 0:02:52]} 6. Bc4 {[%clk 0:02:57]}  e6 {[%clk 0:02:52]} 7. d3 {[%clk 0:02:57]}  c6 {[%clk 0:02:50]} 8. Bd2 {[%clk 0:02:57]}  Qc7 {[%clk 0:02:49]} 9. O-O {[%clk 0:02:56]}  Nbd7 {[%clk 0:02:48]} 10. a4 {[%clk 0:02:55]}  a5 {[%clk 0:02:47]} 11. Re1 {[%clk 0:02:53]}  Be7 {[%clk 0:02:47]} 12. Ne4 {[%clk 0:02:49]}  h6 {[%clk 0:02:44]} 13. Bc3 {[%clk 0:02:41]}  O-O {[%clk 0:02:40]} 14. Nxf6+ {[%clk 0:02:37]}  Bxf6 {[%clk 0:02:41]} 15. Bxf6 {[%clk 0:02:37]}  Nxf6 {[%clk 0:02:41]} 16. Ne5 {[%clk 0:02:31]}  Bh7 {[%clk 0:02:39]} 17. Qf3 {[%clk 0:02:20]}  Nd5 {[%clk 0:02:36]} 18. Bxd5 {[%clk 0:01:53]}  cxd5 {[%clk 0:02:34]} 19. c3 {[%clk 0:01:50]}  Rad8 {[%clk 0:02:23]} 20. d4 {[%clk 0:01:50]}  Rfe8 {[%clk 0:02:12]} 21. Qg3 {[%clk 0:01:41]}  f6 {[%clk 0:02:08]} 22. Nf3 {[%clk 0:01:23]}  Qxg3 {[%clk 0:02:08]} 23. fxg3 {[%clk 0:01:24]}  Rd6 {[%clk 0:02:08]} 24. Rec1 {[%clk 0:01:10]}  Rb6 {[%clk 0:02:05]} 25. Ra2 {[%clk 0:01:06]}  Bd3 {[%clk 0:02:03]} 26. Nd2 {[%clk 0:01:02]}  e5 {[%clk 0:02:03]} 27. Re1 {[%clk 0:00:59]}  e4 {[%clk 0:02:02]} 28. Re3 {[%clk 0:00:44]}  f5 {[%clk 0:01:57]} 29. Kf2 {[%clk 0:00:44]}  g5 {[%clk 0:01:56]} 30. Re1 {[%clk 0:00:33]}  f4 {[%clk 0:01:53]} 31. gxf4 {[%clk 0:00:33]}  gxf4 {[%clk 0:01:54]} 32. Kg1 {[%clk 0:00:32]}  e3 {[%clk 0:01:50]} 33. Nf3 {[%clk 0:00:31]}  Bc4 {[%clk 0:01:50]} 34. Raa1 {[%clk 0:00:26]}  Rxb2 {[%clk 0:01:50]} 35. Ne5 {[%clk 0:00:26]}  Ba6 {[%clk 0:01:40]} 36. Rab1 {[%clk 0:00:20]}  Rc2 {[%clk 0:01:41]} 37. Rb6 {[%clk 0:00:19]}  Kh7 {[%clk 0:01:38]} 38. Rd6 {[%clk 0:00:17]}  Rg8 {[%clk 0:01:35]} 39. Rd7+ {[%clk 0:00:15]}  Rg7 {[%clk 0:01:35]} 40. Rxg7+ {[%clk 0:00:11]}  Kxg7 {[%clk 0:01:36]} 41. Rb1 {[%clk 0:00:06]}  Rxc3 {[%clk 0:01:34]} 42. Rb6 {[%clk 0:00:07]}  Rc1+ {[%clk 0:01:33]} 43. Kh2 {[%clk 0:00:07]}  e2 {[%clk 0:01:34]} 44. Nf3 {[%clk 0:00:06]}  e1=Q {[%clk 0:01:33]} 45. Nxe1 {[%clk 0:00:06]}  Rxe1 {[%clk 0:01:34]} 46. Rd6 {[%clk 0:00:06]}  Re2 {[%clk 0:01:32]} 47. Rxd5 {[%clk 0:00:06]}  f3 {[%clk 0:01:32]} 48. Rxa5 {[%clk 0:00:05]}  Rxg2+ {[%clk 0:01:27]} 49. Kh1 {[%clk 0:00:05]}  f2 {[%clk 0:01:24]} 50. Kxg2 {[%clk 0:00:01]}  f1=Q+ {[%clk 0:01:25]} 0-1


[Site "https://www.chess.com"]

[Event "Titled Tuesday Blitz August 1 Early 2023"]
[White "Pranav, V"]
[Black "Mikhailovsky, Vladimir"]
[WhiteFideId "25060783"]
[BlackFideId "34105414"]
[WhiteElo "3005"]
[BlackElo "2752"]
[Result "1-0"]
[Round "8"]
[TimeControl "180+1"]
[Date "2023.08.01"]
[WhiteClock "0:01:46"]
[BlackClock "0:00:00"]
[Board "21"]

1. e4 {[%clk 0:03:00]}  Nf6 {[%clk 0:02:56]} 2. e5 {[%clk 0:03:00]}  Nd5 {[%clk 0:02:56]} 3. d4 {[%clk 0:03:01]}  d6 {[%clk 0:02:57]} 4. Nf3 {[%clk 0:03:01]}  dxe5 {[%clk 0:02:57]} 5. Nxe5 {[%clk 0:03:02]}  c6 {[%clk 0:02:58]} 6. Bd3 {[%clk 0:03:02]}  Nd7 {[%clk 0:02:57]} 7. Nxd7 {[%clk 0:03:02]}  Bxd7 {[%clk 0:02:54]} 8. O-O {[%clk 0:03:03]}  g6 {[%clk 0:02:54]} 9. a3 {[%clk 0:02:59]}  Bg7 {[%clk 0:02:54]} 10. c4 {[%clk 0:02:59]}  Nf6 {[%clk 0:02:55]} 11. Nc3 {[%clk 0:02:58]}  O-O {[%clk 0:02:55]} 12. Re1 {[%clk 0:02:58]}  Bg4 {[%clk 0:02:52]} 13. f3 {[%clk 0:02:59]}  Bf5 {[%clk 0:02:45]} 14. Be3 {[%clk 0:02:56]}  Bxd3 {[%clk 0:02:43]} 15. Qxd3 {[%clk 0:02:57]}  Qd7 {[%clk 0:02:18]} 16. Rad1 {[%clk 0:02:56]}  Rad8 {[%clk 0:02:18]} 17. Bf2 {[%clk 0:02:56]}  Rfe8 {[%clk 0:02:18]} 18. Qc2 {[%clk 0:02:52]}  b6 {[%clk 0:02:10]} 19. b4 {[%clk 0:02:47]}  Nh5 {[%clk 0:02:08]} 20. g3 {[%clk 0:02:38]}  b5 {[%clk 0:01:49]} 21. cxb5 {[%clk 0:02:20]}  cxb5 {[%clk 0:01:48]} 22. Qd3 {[%clk 0:02:21]}  a6 {[%clk 0:01:45]} 23. d5 {[%clk 0:02:18]}  Bxc3 {[%clk 0:01:07]} 24. Qxc3 {[%clk 0:02:19]}  Rc8 {[%clk 0:01:03]} 25. Bc5 {[%clk 0:02:14]}  Ng7 {[%clk 0:00:55]} 26. Qe5 {[%clk 0:02:13]}  Nf5 {[%clk 0:00:54]} 27. g4 {[%clk 0:02:05]}  Nd6 {[%clk 0:00:53]} 28. h4 {[%clk 0:02:00]}  Nc4 {[%clk 0:00:53]} 29. Qg5 {[%clk 0:01:54]}  Nxa3 {[%clk 0:00:27]} 30. Rxe7 {[%clk 0:01:50]}  Rxe7 {[%clk 0:00:25]} 31. Qxe7 {[%clk 0:01:51]}  Rd8 {[%clk 0:00:17]} 32. Qf6 {[%clk 0:01:46]}  Nc2 {[%clk 0:00:00]} 33. Rd2 {[%clk 0:01:46]} 1-0


[Site "https://www.chess.com"]

[Event "Titled Tuesday Blitz August 1 Early 2023"]
[White "Ning, Kaiyu"]
[Black "Martinez Alcantara, Jose Eduardo"]
[WhiteFideId "8614750"]
[BlackFideId "3805662"]
[WhiteElo "2733"]
[BlackElo "2998"]
[Result "1-0"]
[Round "8"]
[TimeControl "180+1"]
[Date "2023.08.01"]
[WhiteClock "0:00:08"]
[BlackClock "0:00:00"]
[Board "22"]

1. e4 {[%clk 0:02:56]}  c5 {[%clk 0:03:00]} 2. Nf3 {[%clk 0:02:56]}  d6 {[%clk 0:03:01]} 3. d4 {[%clk 0:02:56]}  cxd4 {[%clk 0:03:02]} 4. Nxd4 {[%clk 0:02:57]}  a6 {[%clk 0:03:03]} 5. c4 {[%clk 0:02:55]}  e6 {[%clk 0:03:03]} 6. Nc3 {[%clk 0:02:54]}  Nf6 {[%clk 0:03:04]} 7. Be3 {[%clk 0:02:51]}  b6 {[%clk 0:03:04]} 8. Be2 {[%clk 0:02:51]}  Bb7 {[%clk 0:03:05]} 9. f3 {[%clk 0:02:52]}  h5 {[%clk 0:03:05]} 10. Rc1 {[%clk 0:02:49]}  Nbd7 {[%clk 0:03:06]} 11. O-O {[%clk 0:02:47]}  Rc8 {[%clk 0:03:06]} 12. Qd2 {[%clk 0:02:45]}  Be7 {[%clk 0:03:07]} 13. Rfd1 {[%clk 0:02:43]}  O-O {[%clk 0:03:08]} 14. a4 {[%clk 0:02:27]}  Qc7 {[%clk 0:03:08]} 15. b4 {[%clk 0:02:27]}  Qb8 {[%clk 0:03:07]} 16. Nb3 {[%clk 0:02:26]}  Rfd8 {[%clk 0:03:06]} 17. a5 {[%clk 0:02:22]}  bxa5 {[%clk 0:03:07]} 18. Nxa5 {[%clk 0:02:22]}  Ba8 {[%clk 0:03:06]} 19. Rb1 {[%clk 0:02:07]}  Qc7 {[%clk 0:03:06]} 20. Rdc1 {[%clk 0:02:02]}  Rb8 {[%clk 0:03:06]} 21. Nd5 {[%clk 0:01:35]}  exd5 {[%clk 0:03:05]} 22. cxd5 {[%clk 0:01:35]}  Nc5 {[%clk 0:03:06]} 23. bxc5 {[%clk 0:01:35]}  Rxb1 {[%clk 0:03:05]} 24. Rxb1 {[%clk 0:01:35]}  dxc5 {[%clk 0:03:06]} 25. Nc4 {[%clk 0:01:27]}  Bxd5 {[%clk 0:03:04]} 26. exd5 {[%clk 0:01:26]}  Nxd5 {[%clk 0:03:05]} 27. Bf2 {[%clk 0:01:00]}  Nf4 {[%clk 0:03:05]} 28. Qe3 {[%clk 0:00:53]}  Bg5 {[%clk 0:03:05]} 29. Qe4 {[%clk 0:00:32]}  f5 {[%clk 0:02:38]} 30. Qc2 {[%clk 0:00:32]}  Bf6 {[%clk 0:02:28]} 31. Bf1 {[%clk 0:00:32]}  g6 {[%clk 0:02:28]} 32. Rb6 {[%clk 0:00:29]}  Nd5 {[%clk 0:02:28]} 33. Rb1 {[%clk 0:00:27]}  Kg7 {[%clk 0:02:28]} 34. Rd1 {[%clk 0:00:27]}  Nb4 {[%clk 0:02:25]} 35. Qb1 {[%clk 0:00:25]}  Rb8 {[%clk 0:02:13]} 36. Qb3 {[%clk 0:00:23]}  Bd4 {[%clk 0:02:03]} 37. Qa4 {[%clk 0:00:17]}  Kh6 {[%clk 0:01:46]} 38. Bxd4 {[%clk 0:00:17]}  cxd4 {[%clk 0:01:47]} 39. Qa5 {[%clk 0:00:13]}  Qf4 {[%clk 0:01:33]} 40. Qe5 {[%clk 0:00:14]}  Qxe5 {[%clk 0:01:34]} 41. Nxe5 {[%clk 0:00:14]}  a5 {[%clk 0:01:25]} 42. Rxd4 {[%clk 0:00:13]}  a4 {[%clk 0:01:26]} 43. Nc4 {[%clk 0:00:13]}  Nc2 {[%clk 0:01:21]} 44. Rd2 {[%clk 0:00:12]}  Nb4 {[%clk 0:01:22]} 45. Na3 {[%clk 0:00:12]}  Nc6 {[%clk 0:01:22]} 46. Rc2 {[%clk 0:00:12]}  Nd4 {[%clk 0:01:22]} 47. Rc4 {[%clk 0:00:12]}  Ne6 {[%clk 0:01:22]} 48. Rxa4 {[%clk 0:00:13]}  Kg5 {[%clk 0:01:19]} 49. Nb5 {[%clk 0:00:13]}  h4 {[%clk 0:01:17]} 50. Nd4 {[%clk 0:00:13]}  Ng7 {[%clk 0:01:16]} 51. Ra7 {[%clk 0:00:13]}  Nh5 {[%clk 0:01:14]} 52. Ne2 {[%clk 0:00:11]}  Rb1 {[%clk 0:01:13]} 53. Kf2 {[%clk 0:00:11]}  Rb2 {[%clk 0:01:14]} 54. Ra4 {[%clk 0:00:11]}  Nf6 {[%clk 0:01:14]} 55. Rd4 {[%clk 0:00:11]}  Ra2 {[%clk 0:01:13]} 56. g3 {[%clk 0:00:12]}  hxg3+ {[%clk 0:01:13]} 57. hxg3 {[%clk 0:00:13]}  Kh6 {[%clk 0:01:14]} 58. Kg2 {[%clk 0:00:11]}  Nh5 {[%clk 0:01:14]} 59. Kf2 {[%clk 0:00:11]}  Nf6 {[%clk 0:01:15]} 60. Rd3 {[%clk 0:00:12]}  Rb2 {[%clk 0:01:14]} 61. Ke3 {[%clk 0:00:12]}  Rb1 {[%clk 0:01:13]} 62. Kf2 {[%clk 0:00:11]}  Rb2 {[%clk 0:01:13]} 63. Rc3 {[%clk 0:00:11]}  Nd5 {[%clk 0:01:13]} 64. Rc1 {[%clk 0:00:11]}  Nb4 {[%clk 0:01:12]} 65. Rd1 {[%clk 0:00:11]}  Ra2 {[%clk 0:01:12]} 66. g4 {[%clk 0:00:11]}  fxg4 {[%clk 0:01:11]} 67. fxg4 {[%clk 0:00:11]}  Nc6 {[%clk 0:01:12]} 68. Rd5 {[%clk 0:00:11]}  Kg7 {[%clk 0:01:10]} 69. Kg3 {[%clk 0:00:12]}  Ra3+ {[%clk 0:01:09]} 70. Kf2 {[%clk 0:00:12]}  Ra2 {[%clk 0:01:09]} 71. Kf3 {[%clk 0:00:12]}  Ne7 {[%clk 0:01:10]} 72. Re5 {[%clk 0:00:12]}  Kf6 {[%clk 0:01:09]} 73. Re3 {[%clk 0:00:12]}  Nd5 {[%clk 0:01:10]} 74. Rd3 {[%clk 0:00:13]}  Nb4 {[%clk 0:01:05]} 75. Rd4 {[%clk 0:00:13]}  Nc2 {[%clk 0:01:04]} 76. Rd6+ {[%clk 0:00:12]}  Kg5 {[%clk 0:01:01]} 77. Nf4 {[%clk 0:00:10]}  Ne1+ {[%clk 0:00:58]} 78. Kg3 {[%clk 0:00:08]}  Ra3+ {[%clk 0:00:58]} 79. Bd3 {[%clk 0:00:09]}  Kh6 {[%clk 0:00:55]} 80. Rxg6+ {[%clk 0:00:09]}  Kh7 {[%clk 0:00:56]} 81. Ra6+ {[%clk 0:00:06]}  Rxd3+ {[%clk 0:00:57]} 82. Nxd3 {[%clk 0:00:06]}  Nxd3 {[%clk 0:00:58]} 83. Kh4 {[%clk 0:00:06]}  Ne5 {[%clk 0:00:57]} 84. Kh5 {[%clk 0:00:06]}  Kg7 {[%clk 0:00:58]} 85. g5 {[%clk 0:00:07]}  Nd3 {[%clk 0:00:57]} 86. Ra7+ {[%clk 0:00:07]}  Kf8 {[%clk 0:00:58]} 87. Kh6 {[%clk 0:00:07]}  Ne5 {[%clk 0:00:58]} 88. g6 {[%clk 0:00:08]}  Ng4+ {[%clk 0:00:59]} 89. Kh7 {[%clk 0:00:08]}  Ne5 {[%clk 0:00:00]} 90. g7+ {[%clk 0:00:08]} 1-0


[Site "https://www.chess.com"]

[Event "Titled Tuesday Blitz August 1 Early 2023"]
[White "Zhao, Jun"]
[Black "Kramnik, Vladimir"]
[WhiteFideId "8602522"]
[BlackFideId "4101588"]
[WhiteElo "2727"]
[BlackElo "2973"]
[Result "0-1"]
[Round "8"]
[TimeControl "180+1"]
[Date "2023.08.01"]
[WhiteClock "0:00:00"]
[BlackClock "0:00:14"]
[Board "23"]

1. e4 {[%clk 0:02:47]}  c5 {[%clk 0:02:58]} 2. Nf3 {[%clk 0:02:47]}  e6 {[%clk 0:02:59]} 3. d4 {[%clk 0:02:47]}  cxd4 {[%clk 0:02:58]} 4. Nxd4 {[%clk 0:02:47]}  Nf6 {[%clk 0:02:58]} 5. Nc3 {[%clk 0:02:47]}  Nc6 {[%clk 0:02:58]} 6. Ndb5 {[%clk 0:02:45]}  d6 {[%clk 0:02:58]} 7. Bf4 {[%clk 0:02:44]}  e5 {[%clk 0:02:59]} 8. Bg5 {[%clk 0:02:45]}  a6 {[%clk 0:02:59]} 9. Na3 {[%clk 0:02:44]}  b5 {[%clk 0:03:00]} 10. Nd5 {[%clk 0:02:45]}  Be7 {[%clk 0:03:00]} 11. Bxf6 {[%clk 0:02:45]}  Bxf6 {[%clk 0:03:00]} 12. c3 {[%clk 0:02:46]}  Rb8 {[%clk 0:02:59]} 13. Nc2 {[%clk 0:02:45]}  Bg5 {[%clk 0:02:59]} 14. Be2 {[%clk 0:02:44]}  O-O {[%clk 0:02:57]} 15. O-O {[%clk 0:02:43]}  Be6 {[%clk 0:02:55]} 16. Bg4 {[%clk 0:02:37]}  Qc8 {[%clk 0:02:43]} 17. Bxe6 {[%clk 0:02:35]}  fxe6 {[%clk 0:02:42]} 18. Ndb4 {[%clk 0:02:33]}  Nxb4 {[%clk 0:02:38]} 19. Nxb4 {[%clk 0:02:33]}  a5 {[%clk 0:02:38]} 20. Nd3 {[%clk 0:02:33]}  Bd8 {[%clk 0:02:28]} 21. Qe2 {[%clk 0:02:18]}  Bb6 {[%clk 0:02:25]} 22. Kh1 {[%clk 0:02:14]}  Qc4 {[%clk 0:02:24]} 23. a3 {[%clk 0:02:11]}  Rb7 {[%clk 0:02:20]} 24. f3 {[%clk 0:02:06]}  g5 {[%clk 0:02:15]} 25. Rad1 {[%clk 0:01:55]}  Rbf7 {[%clk 0:02:11]} 26. Nc1 {[%clk 0:01:53]}  Bc7 {[%clk 0:02:01]} 27. h3 {[%clk 0:01:36]}  h5 {[%clk 0:01:58]} 28. Nd3 {[%clk 0:01:10]}  Rg7 {[%clk 0:01:38]} 29. Qe3 {[%clk 0:00:33]}  Qc6 {[%clk 0:01:34]} 30. g4 {[%clk 0:00:19]}  Bb6 {[%clk 0:01:31]} 31. Qe2 {[%clk 0:00:18]}  Qe8 {[%clk 0:01:17]} 32. Kg2 {[%clk 0:00:18]}  Rgf7 {[%clk 0:01:06]} 33. Ne1 {[%clk 0:00:14]}  Bc7 {[%clk 0:00:58]} 34. Nd3 {[%clk 0:00:13]}  Bb6 {[%clk 0:00:57]} 35. Ne1 {[%clk 0:00:13]}  hxg4 {[%clk 0:00:54]} 36. hxg4 {[%clk 0:00:12]}  Rh7 {[%clk 0:00:33]} 37. Rxd6 {[%clk 0:00:09]}  Bc5 {[%clk 0:00:31]} 38. Rd1 {[%clk 0:00:06]}  Kg7 {[%clk 0:00:30]} 39. Rh1 {[%clk 0:00:03]}  Rxh1 {[%clk 0:00:28]} 40. Kxh1 {[%clk 0:00:04]}  Qg6 {[%clk 0:00:27]} 41. Kg2 {[%clk 0:00:03]}  Rh8 {[%clk 0:00:25]} 42. Nd3 {[%clk 0:00:02]}  Qh6 {[%clk 0:00:24]} 43. Nf2 {[%clk 0:00:01]}  Qh2+ {[%clk 0:00:20]} 44. Kf1 {[%clk 0:00:01]}  Qg3 {[%clk 0:00:19]} 45. Rd7+ {[%clk 0:00:01]}  Kf6 {[%clk 0:00:19]} 46. Qd2 {[%clk 0:00:01]}  Qxf3 {[%clk 0:00:15]} 47. Ke1 {[%clk 0:00:01]}  Bxf2+ {[%clk 0:00:13]} 48. Qxf2 {[%clk 0:00:00]}  Rh1+ {[%clk 0:00:14]} 0-1


[Site "https://www.chess.com"]